[Event "Late-Titled-Tuesday-Blitz-September-19-2023"]
[Site "Chess.com"]
[Date "2023.09.19"]
[Round "7"]
[White "Qvalda"]
[Black "IMRosen"]
[Result "1-0"]
[WhiteElo "2356"]
[BlackElo "2557"]
[TimeControl "180+1"]
[EndTime "15:15:56 PDT"]
[Termination "Qvalda won by resignation"]

1. d4 {[%clk 0:03:00.9]} 1... Nf6 {[%clk 0:02:53.9]} 2. c4 {[%clk 0:02:59.3]}
2... c5 {[%clk 0:02:53.6]} 3. d5 {[%clk 0:02:59]} 3... b5 {[%clk 0:02:53.1]} 4.
cxb5 {[%clk 0:02:59.9]} 4... a6 {[%clk 0:02:52.9]} 5. bxa6 {[%clk 0:03:00.7]}
5... g6 {[%clk 0:02:53]} 6. Nc3 {[%clk 0:02:59.9]} 6... Bg7 {[%clk 0:02:53.7]}
7. g3 {[%clk 0:02:58.5]} 7... O-O {[%clk 0:02:53.8]} 8. Bg2 {[%clk 0:02:58.9]}
8... d6 {[%clk 0:02:54.5]} 9. Nf3 {[%clk 0:02:53.6]} 9... Nxa6 {[%clk
0:02:47.2]} 10. O-O {[%clk 0:02:53.5]} 10... Bb7 {[%clk 0:02:32.8]} 11. Nd2
{[%clk 0:02:29.8]} 11... Nb4 {[%clk 0:02:15]} 12. Nc4 {[%clk 0:02:26]} 12... Ba6
{[%clk 0:02:15.3]} 13. Ne3 {[%clk 0:02:18.5]} 13... Nd7 {[%clk 0:01:54.2]} 14.
a3 {[%clk 0:02:13.2]} 14... Bb7 {[%clk 0:01:54.4]} 15. Rb1 {[%clk 0:02:07.2]}
15... Na6 {[%clk 0:01:54.5]} 16. Nc4 {[%clk 0:02:05.1]} 16... Nb6 {[%clk
0:01:50]} 17. Na5 {[%clk 0:02:00.1]} 17... Bc8 {[%clk 0:01:43.5]} 18. Nc6 {[%clk
0:01:59.8]} 18... Qc7 {[%clk 0:01:36.2]} 19. Bg5 {[%clk 0:01:57.2]} 19... Re8
{[%clk 0:01:28.9]} 20. h4 {[%clk 0:01:55.3]} 20... Bf5 {[%clk 0:01:18.9]} 21. e4
{[%clk 0:01:48]} 21... Bc8 {[%clk 0:01:16.3]} 22. h5 {[%clk 0:01:48.5]} 22... h6
{[%clk 0:01:14.7]} 23. Bf4 {[%clk 0:01:47.4]} 23... g5 {[%clk 0:01:14.2]} 24.
Be3 {[%clk 0:01:47.6]} 24... Nc4 {[%clk 0:01:12.8]} 25. Bc1 {[%clk 0:01:46.5]}
25... Bb7 {[%clk 0:01:05.9]} 26. f4 {[%clk 0:01:44.9]} 26... gxf4 {[%clk
0:00:55.7]} 27. gxf4 {[%clk 0:01:37.6]} 27... Bxc6 {[%clk 0:00:38.6]} 28. dxc6
{[%clk 0:01:37.5]} 28... Bd4+ {[%clk 0:00:39.2]} 29. Kh1 {[%clk 0:01:37]} 29...
Kh8 {[%clk 0:00:39.4]} 30. e5 {[%clk 0:01:36.1]} 30... Rg8 {[%clk 0:00:34.4]}
31. Qd3 {[%clk 0:01:20.6]} 31... Rxg2 {[%clk 0:00:29.6]} 32. Kxg2 {[%clk
0:01:16.5]} 32... Qxc6+ {[%clk 0:00:30.3]} 33. Qe4 {[%clk 0:01:11]} 33... Rg8+
{[%clk 0:00:29.9]} 34. Kh2 {[%clk 0:01:09.6]} 34... Qxe4 {[%clk 0:00:20]} 35.
Nxe4 {[%clk 0:01:10.5]} 35... dxe5 {[%clk 0:00:20.8]} 36. b3 {[%clk 0:01:05]}
36... Nd6 {[%clk 0:00:15.3]} 37. Nxd6 {[%clk 0:01:01.3]} 37... exd6 {[%clk
0:00:16.2]} 38. fxe5 {[%clk 0:00:58.8]} 38... Bxe5+ {[%clk 0:00:14.4]} 39. Bf4
{[%clk 0:00:59.1]} 39... Rg5 {[%clk 0:00:14.4]} 40. Bxe5+ {[%clk 0:00:56.2]}
40... Rxe5 {[%clk 0:00:12.8]} 41. Rxf7 {[%clk 0:00:54.4]} 41... Rxh5+ {[%clk
0:00:12.9]} 42. Kg3 {[%clk 0:00:54.4]} 42... Rg5+ {[%clk 0:00:11.8]} 43. Kh4
{[%clk 0:00:54.5]} 43... Nb8 {[%clk 0:00:05.3]} 44. Re1 {[%clk 0:00:51.1]} 44...
Nc6 {[%clk 0:00:02.6]} 45. Re8+ {[%clk 0:00:49.4]} 45... Rg8 {[%clk 0:00:03.2]}
46. Rxg8+ {[%clk 0:00:48.8]} 46... Kxg8 {[%clk 0:00:04.1]} 47. Rf6 {[%clk
0:00:47.6]} 47... Nd4 {[%clk 0:00:04.4]} 48. Kh5 {[%clk 0:00:41.1]} 48... Nxb3
{[%clk 0:00:04.4]} 49. Rxd6 {[%clk 0:00:40.3]} 49... Kf7 {[%clk 0:00:04.9]} 50.
Rb6 {[%clk 0:00:34.6]} 50... c4 {[%clk 0:00:04.9]} 51. a4 {[%clk 0:00:33.9]}
51... Ke7 {[%clk 0:00:04.1]} 52. Rb4 {[%clk 0:00:30.1]} 52... Na5 {[%clk
0:00:01.9]} 53. Rb5 {[%clk 0:00:28.5]} 53... Nb3 {[%clk 0:00:02.4]} 54. a5
{[%clk 0:00:15.6]} 54... Nxa5 {[%clk 0:00:02.2]} 55. Rxa5 {[%clk 0:00:15.2]}
55... Kd6 {[%clk 0:00:02.9]} 56. Kg4 {[%clk 0:00:14.1]} 56... c3 {[%clk
0:00:02.4]} 57. Kf3 {[%clk 0:00:13.6]} 57... c2 {[%clk 0:00:02.2]} 58. Ra1
{[%clk 0:00:13.5]} 58... Kd5 {[%clk 0:00:02.8]} 59. Rc1 {[%clk 0:00:13.6]} 59...
Kd4 {[%clk 0:00:03.5]} 60. Rxc2 {[%clk 0:00:13.9]} 60... Ke5 {[%clk 0:00:04.4]}
61. Rh2 {[%clk 0:00:13.9]} 61... Kf5 {[%clk 0:00:04.9]} 62. Rxh6 {[%clk
0:00:13.9]} 1-0

[Event "Late-Titled-Tuesday-Blitz-September-19-2023"]
[Site "Chess.com"]
[Date "2023.09.19"]
[Round "7"]
[White "Eloist"]
[Black "miraitrunks"]
[Result "1-0"]
[WhiteElo "2496"]
[BlackElo "2139"]
[TimeControl "180+1"]
[EndTime "15:16:00 PDT"]
[Termination "Eloist won on time"]

1. e4 {[%clk 0:03:00.9]} 1... e6 {[%clk 0:02:59.7]} 2. d4 {[%clk 0:02:59.4]}
2... d5 {[%clk 0:03:00.3]} 3. Nd2 {[%clk 0:02:59]} 3... dxe4 {[%clk 0:03:00]} 4.
Nxe4 {[%clk 0:02:58.6]} 4... Bd7 {[%clk 0:03:00.4]} 5. Nf3 {[%clk 0:02:58.2]}
5... Bc6 {[%clk 0:03:00.7]} 6. Bd3 {[%clk 0:02:58]} 6... Nf6 {[%clk 0:03:00.5]}
7. Ned2 {[%clk 0:02:57.4]} 7... Bd6 {[%clk 0:02:59.8]} 8. O-O {[%clk 0:02:57.2]}
8... O-O {[%clk 0:02:59.9]} 9. Nc4 {[%clk 0:02:56]} 9... Nbd7 {[%clk 0:02:48.1]}
10. Re1 {[%clk 0:02:54.1]} 10... Re8 {[%clk 0:02:46.8]} 11. Na5 {[%clk
0:02:52.3]} 11... e5 {[%clk 0:02:39.8]} 12. Nxc6 {[%clk 0:02:51.1]} 12... bxc6
{[%clk 0:02:39.9]} 13. dxe5 {[%clk 0:02:47.8]} 13... Nxe5 {[%clk 0:02:38.6]} 14.
Nxe5 {[%clk 0:02:43.3]} 14... Bxe5 {[%clk 0:02:39.5]} 15. Qf3 {[%clk 0:02:10.7]}
15... Qd5 {[%clk 0:02:30.5]} 16. Qxd5 {[%clk 0:02:03.6]} 16... cxd5 {[%clk
0:02:31.1]} 17. g3 {[%clk 0:01:53.4]} 17... Bd4 {[%clk 0:02:17.1]} 18. Kf1
{[%clk 0:01:41.5]} 18... Ng4 {[%clk 0:02:10.5]} 19. Rxe8+ {[%clk 0:01:27.2]}
19... Rxe8 {[%clk 0:02:11.1]} 20. f3 {[%clk 0:01:24.3]} 20... Ne5 {[%clk
0:01:55]} 21. Be2 {[%clk 0:01:18.8]} 21... Ng6 {[%clk 0:01:16.2]} 22. c3 {[%clk
0:01:16.3]} 22... Bb6 {[%clk 0:01:14.1]} 23. Bd2 {[%clk 0:01:08.9]} 23... h5
{[%clk 0:01:14]} 24. Bb5 {[%clk 0:01:05]} 24... Re5 {[%clk 0:01:00.4]} 25. Re1
{[%clk 0:01:00.4]} 25... Rf5 {[%clk 0:00:43.5]} 26. Kg2 {[%clk 0:00:58.2]} 26...
Ne5 {[%clk 0:00:42.2]} 27. f4 {[%clk 0:00:45.8]} 27... Ng4 {[%clk 0:00:39.5]}
28. Re8+ {[%clk 0:00:45.1]} 28... Kh7 {[%clk 0:00:37.4]} 29. Bd3 {[%clk
0:00:45.1]} 29... Kg6 {[%clk 0:00:35.8]} 30. Re7 {[%clk 0:00:35.9]} 30... Kf6
{[%clk 0:00:30.9]} 31. Rxf7+ {[%clk 0:00:25.9]} 31... Kxf7 {[%clk 0:00:29.9]}
32. Bxf5 {[%clk 0:00:26.4]} 32... Nf6 {[%clk 0:00:29.8]} 33. Kf3 {[%clk
0:00:25.7]} 33... g6 {[%clk 0:00:29.6]} 34. Bd3 {[%clk 0:00:25.6]} 34... Ke6
{[%clk 0:00:29.6]} 35. h3 {[%clk 0:00:25.7]} 35... c5 {[%clk 0:00:29.5]} 36. g4
{[%clk 0:00:25.9]} 36... hxg4+ {[%clk 0:00:28.7]} 37. hxg4 {[%clk 0:00:25.9]}
37... c4 {[%clk 0:00:28.7]} 38. Bxg6 {[%clk 0:00:25.3]} 38... d4 {[%clk
0:00:27.3]} 39. cxd4 {[%clk 0:00:23.3]} 39... Bxd4 {[%clk 0:00:27.9]} 40. Bc3
{[%clk 0:00:22.8]} 40... Bxc3 {[%clk 0:00:27.9]} 41. bxc3 {[%clk 0:00:23.2]}
41... Nd5 {[%clk 0:00:28.6]} 42. g5 {[%clk 0:00:20.4]} 42... Nxc3 {[%clk
0:00:28.4]} 43. f5+ {[%clk 0:00:20.6]} 43... Ke5 {[%clk 0:00:27.6]} 44. f6
{[%clk 0:00:20.1]} 44... Ke6 {[%clk 0:00:27]} 45. a3 {[%clk 0:00:14.8]} 45...
Nb5 {[%clk 0:00:26.1]} 46. a4 {[%clk 0:00:14.5]} 46... Nd6 {[%clk 0:00:24.4]}
47. Bc2 {[%clk 0:00:11.7]} 47... a5 {[%clk 0:00:20.7]} 48. Kf4 {[%clk
0:00:11.7]} 48... Nb7 {[%clk 0:00:10.9]} 49. Ke3 {[%clk 0:00:07.9]} 49... Nd6
{[%clk 0:00:08.4]} 50. Kd4 {[%clk 0:00:07.6]} 50... Nf7 {[%clk 0:00:07.1]} 51.
g6 {[%clk 0:00:06.3]} 51... Nh6 {[%clk 0:00:03.5]} 52. f7 {[%clk 0:00:05.6]}
52... Ke7 {[%clk 0:00:03.8]} 53. Kxc4 {[%clk 0:00:04.4]} 1-0

[Event "Late-Titled-Tuesday-Blitz-September-19-2023"]
[Site "Chess.com"]
[Date "2023.09.19"]
[Round "7"]
[White "dropstoneDP"]
[Black "SpeedofLight0"]
[Result "1-0"]
[WhiteElo "3056"]
[BlackElo "3087"]
[TimeControl "180+1"]
[EndTime "15:16:04 PDT"]
[Termination "dropstoneDP won by checkmate"]

1. e4 {[%clk 0:03:00.9]} 1... e5 {[%clk 0:02:58.7]} 2. Nf3 {[%clk 0:03:01.4]}
2... Nc6 {[%clk 0:02:59.2]} 3. Nc3 {[%clk 0:03:01.3]} 3... Nf6 {[%clk
0:02:59.2]} 4. d4 {[%clk 0:03:01.9]} 4... Bb4 {[%clk 0:02:58.9]} 5. Nxe5 {[%clk
0:03:01.6]} 5... Qe7 {[%clk 0:02:59.1]} 6. Qd3 {[%clk 0:03:00.5]} 6... Bxc3+
{[%clk 0:02:40.6]} 7. Qxc3 {[%clk 0:02:56.2]} 7... d6 {[%clk 0:02:34.6]} 8. Nxc6
{[%clk 0:02:54.3]} 8... Qxe4+ {[%clk 0:02:34.5]} 9. Be2 {[%clk 0:02:47]} 9...
Qxc6 {[%clk 0:02:30.4]} 10. Qxc6+ {[%clk 0:02:44]} 10... bxc6 {[%clk 0:02:31.3]}
11. Bf3 {[%clk 0:02:33.6]} 11... Nd5 {[%clk 0:02:29.3]} 12. Bd2 {[%clk
0:02:21.1]} 12... Be6 {[%clk 0:02:27.9]} 13. c4 {[%clk 0:02:17.6]} 13... Ne7
{[%clk 0:02:27.5]} 14. b3 {[%clk 0:02:17.9]} 14... Kd7 {[%clk 0:02:26.7]} 15.
Ba5 {[%clk 0:02:06.3]} 15... Rae8 {[%clk 0:02:15.4]} 16. O-O-O {[%clk
0:02:05.3]} 16... d5 {[%clk 0:02:13.4]} 17. c5 {[%clk 0:01:48.2]} 17... h5
{[%clk 0:02:12.8]} 18. h3 {[%clk 0:01:47.6]} 18... g5 {[%clk 0:02:06.9]} 19. Bd2
{[%clk 0:01:37.6]} 19... f6 {[%clk 0:02:04.6]} 20. h4 {[%clk 0:01:32]} 20... g4
{[%clk 0:01:59.7]} 21. Be2 {[%clk 0:01:32.5]} 21... Bf5 {[%clk 0:01:59.9]} 22.
Rhe1 {[%clk 0:01:20.8]} 22... Ng6 {[%clk 0:01:51.5]} 23. g3 {[%clk 0:01:18.5]}
23... Be4 {[%clk 0:01:51.7]} 24. Ba6 {[%clk 0:01:08.1]} 24... Re6 {[%clk
0:01:49.5]} 25. Re2 {[%clk 0:01:02.4]} 25... Rhe8 {[%clk 0:01:42.2]} 26. Rde1
{[%clk 0:01:02.1]} 26... R6e7 {[%clk 0:01:39.4]} 27. Kb2 {[%clk 0:00:58.7]}
27... Rf7 {[%clk 0:01:31.8]} 28. Kc3 {[%clk 0:00:56.6]} 28... f5 {[%clk
0:01:30.4]} 29. Bg5 {[%clk 0:00:50.5]} 29... Nf8 {[%clk 0:01:24.2]} 30. Bf4
{[%clk 0:00:46.7]} 30... Ng6 {[%clk 0:01:22.7]} 31. Re3 {[%clk 0:00:45.2]} 31...
Rb8 {[%clk 0:01:20.5]} 32. b4 {[%clk 0:00:40.7]} 32... Ke6 {[%clk 0:01:18.8]}
33. a4 {[%clk 0:00:40.5]} 33... Rd7 {[%clk 0:01:12.3]} 34. R1e2 {[%clk
0:00:33.8]} 34... Kf7 {[%clk 0:01:10.9]} 35. Rb2 {[%clk 0:00:33.5]} 35... Nf8
{[%clk 0:01:09.6]} 36. b5 {[%clk 0:00:31.5]} 36... cxb5 {[%clk 0:01:07.9]} 37.
Rxb5 {[%clk 0:00:28.8]} 37... Rxb5 {[%clk 0:00:50.5]} 38. axb5 {[%clk
0:00:29.3]} 38... Ne6 {[%clk 0:00:49.9]} 39. Bc8 {[%clk 0:00:29.4]} 39... Re7
{[%clk 0:00:49.3]} 40. Bxe6+ {[%clk 0:00:29.3]} 40... Kxe6 {[%clk 0:00:50]} 41.
Kb4 {[%clk 0:00:29.3]} 41... Rf7 {[%clk 0:00:22.2]} 42. Ra3 {[%clk 0:00:28.2]}
42... Bf3 {[%clk 0:00:19]} 43. Ra6+ {[%clk 0:00:26.3]} 43... Kd7 {[%clk
0:00:18.3]} 44. Rxa7 {[%clk 0:00:21.3]} 44... Ke6 {[%clk 0:00:17.7]} 45. Rxc7
{[%clk 0:00:17.2]} 45... Rxc7 {[%clk 0:00:13.8]} 46. Bxc7 {[%clk 0:00:18.1]}
46... Kd7 {[%clk 0:00:14.4]} 47. Bf4 {[%clk 0:00:18]} 47... Be2 {[%clk
0:00:13.6]} 48. c6+ {[%clk 0:00:18.9]} 48... Kc8 {[%clk 0:00:12.9]} 49. Kc5
{[%clk 0:00:19.8]} 49... Bc4 {[%clk 0:00:13.2]} 50. b6 {[%clk 0:00:18.9]} 50...
Ba6 {[%clk 0:00:14.1]} 51. Be5 {[%clk 0:00:19.1]} 51... f4 {[%clk 0:00:13.6]}
52. Bxf4 {[%clk 0:00:17.7]} 52... Bb7 {[%clk 0:00:10.7]} 53. cxb7+ {[%clk
0:00:17.5]} 53... Kxb7 {[%clk 0:00:11.6]} 54. Bc7 {[%clk 0:00:17.6]} 54... Kc8
{[%clk 0:00:11.5]} 55. Kxd5 {[%clk 0:00:18]} 55... Kb7 {[%clk 0:00:11.6]} 56.
Ke4 {[%clk 0:00:18.6]} 56... Kc8 {[%clk 0:00:12]} 57. f3 {[%clk 0:00:18.7]}
57... Kd7 {[%clk 0:00:12.9]} 58. fxg4 {[%clk 0:00:18.8]} 58... hxg4 {[%clk
0:00:13.8]} 59. d5 {[%clk 0:00:19.1]} 59... Ke7 {[%clk 0:00:14.2]} 60. Be5
{[%clk 0:00:19.5]} 60... Kd8 {[%clk 0:00:15.1]} 61. Bd4 {[%clk 0:00:19.9]} 61...
Kd7 {[%clk 0:00:16]} 62. Bc5 {[%clk 0:00:20.5]} 62... Kd8 {[%clk 0:00:16.5]} 63.
Kf5 {[%clk 0:00:21.1]} 63... Kd7 {[%clk 0:00:17.1]} 64. Kf6 {[%clk 0:00:21.5]}
64... Kc8 {[%clk 0:00:18]} 65. Ke6 {[%clk 0:00:21.4]} 65... Kd8 {[%clk
0:00:18.3]} 66. h5 {[%clk 0:00:21.2]} 66... Kc8 {[%clk 0:00:18.6]} 67. h6 {[%clk
0:00:21.6]} 67... Kb7 {[%clk 0:00:19.5]} 68. h7 {[%clk 0:00:21.7]} 68... Kc8
{[%clk 0:00:20.4]} 69. h8=N {[%clk 0:00:19.8]} 69... Kb7 {[%clk 0:00:21.3]} 70.
Nf7 {[%clk 0:00:19.5]} 70... Ka6 {[%clk 0:00:22]} 71. Bf2 {[%clk 0:00:19.4]}
71... Kb7 {[%clk 0:00:22.9]} 72. d6 {[%clk 0:00:19.1]} 72... Kc8 {[%clk
0:00:23.8]} 73. d7+ {[%clk 0:00:19.1]} 73... Kb7 {[%clk 0:00:24.7]} 74. d8=Q
{[%clk 0:00:18.4]} 74... Kc6 {[%clk 0:00:25.1]} 75. Qd5# {[%clk 0:00:18.9]} 1-0

[Event "Late-Titled-Tuesday-Blitz-September-19-2023"]
[Site "Chess.com"]
[Date "2023.09.19"]
[Round "7"]
[White "Verony64"]
[Black "pirulillo"]
[Result "1-0"]
[WhiteElo "2276"]
[BlackElo "2367"]
[TimeControl "180+1"]
[EndTime "15:16:08 PDT"]
[Termination "Verony64 won on time"]

1. e4 {[%clk 0:03:00.9]} 1... c5 {[%clk 0:02:59.4]} 2. Nc3 {[%clk 0:03:00.8]}
2... Nc6 {[%clk 0:02:56.4]} 3. d3 {[%clk 0:03:01.3]} 3... g6 {[%clk 0:02:56.7]}
4. g3 {[%clk 0:03:00.1]} 4... Bg7 {[%clk 0:02:57.2]} 5. Bg2 {[%clk 0:03:00.4]}
5... d6 {[%clk 0:02:57.4]} 6. f4 {[%clk 0:03:00.4]} 6... e6 {[%clk 0:02:56.3]}
7. Nf3 {[%clk 0:03:00.9]} 7... Nge7 {[%clk 0:02:53.7]} 8. O-O {[%clk 0:03:01.4]}
8... O-O {[%clk 0:02:52.2]} 9. Be3 {[%clk 0:03:01.9]} 9... Nd4 {[%clk
0:02:49.7]} 10. Qd2 {[%clk 0:03:01.7]} 10... Nec6 {[%clk 0:02:45.1]} 11. Rae1
{[%clk 0:02:59.6]} 11... Bd7 {[%clk 0:02:41.5]} 12. Nd1 {[%clk 0:03:00.1]} 12...
Qc7 {[%clk 0:02:34.6]} 13. c3 {[%clk 0:02:59]} 13... Nxf3+ {[%clk 0:02:33.4]}
14. Bxf3 {[%clk 0:02:59.9]} 14... b6 {[%clk 0:02:32.9]} 15. Bg2 {[%clk
0:02:57.4]} 15... f5 {[%clk 0:02:27.6]} 16. Nf2 {[%clk 0:02:52.1]} 16... Rae8
{[%clk 0:02:19]} 17. g4 {[%clk 0:02:51.6]} 17... Kh8 {[%clk 0:02:15.8]} 18. Kh1
{[%clk 0:02:46.9]} 18... Ne7 {[%clk 0:02:01.3]} 19. gxf5 {[%clk 0:02:36.4]}
19... exf5 {[%clk 0:01:59.9]} 20. Nh3 {[%clk 0:02:32.3]} 20... h6 {[%clk
0:01:56.2]} 21. Ng1 {[%clk 0:02:24.6]} 21... Bc6 {[%clk 0:01:52.9]} 22. exf5
{[%clk 0:02:15.8]} 22... Nxf5 {[%clk 0:01:50.3]} 23. Nf3 {[%clk 0:02:06.9]}
23... Qb7 {[%clk 0:01:49]} 24. Bg1 {[%clk 0:01:54]} 24... Rxe1 {[%clk
0:01:40.6]} 25. Nxe1 {[%clk 0:01:51.2]} 25... Re8 {[%clk 0:01:36.3]} 26. Bxc6
{[%clk 0:01:36.6]} 26... Qxc6+ {[%clk 0:01:35.4]} 27. Qg2 {[%clk 0:01:37.2]}
27... Qxg2+ {[%clk 0:01:30.7]} 28. Kxg2 {[%clk 0:01:37.2]} 28... Re2+ {[%clk
0:01:29.3]} 29. Kf3 {[%clk 0:01:24]} 29... Rxb2 {[%clk 0:01:28]} 30. Rf2 {[%clk
0:01:20.7]} 30... Rxf2+ {[%clk 0:01:23.4]} 31. Bxf2 {[%clk 0:01:21.6]} 31...
Bxc3 {[%clk 0:01:23.4]} 32. Nc2 {[%clk 0:01:20.8]} 32... Kg7 {[%clk 0:01:20.2]}
33. Ke4 {[%clk 0:01:21.3]} 33... Ne7 {[%clk 0:01:16.4]} 34. d4 {[%clk
0:01:21.4]} 34... d5+ {[%clk 0:01:14.8]} 35. Kd3 {[%clk 0:01:20.5]} 35... cxd4
{[%clk 0:01:08.1]} 36. Bxd4+ {[%clk 0:01:17.6]} 36... Bxd4 {[%clk 0:01:06.9]}
37. Nxd4 {[%clk 0:01:18.5]} 37... Kf6 {[%clk 0:01:05.6]} 38. Nb5 {[%clk
0:01:18.5]} 38... Kf5 {[%clk 0:01:00.4]} 39. Ke3 {[%clk 0:01:15.7]} 39... Ke6
{[%clk 0:00:54.1]} 40. Nxa7 {[%clk 0:01:14.3]} 40... Nf5+ {[%clk 0:00:54.5]} 41.
Kd3 {[%clk 0:01:11.5]} 41... Kd6 {[%clk 0:00:54.3]} 42. Nb5+ {[%clk 0:01:10.9]}
42... Kc5 {[%clk 0:00:53.5]} 43. Nc7 {[%clk 0:01:03.8]} 43... Kd6 {[%clk
0:00:26.3]} 44. Nb5+ {[%clk 0:01:01.7]} 44... Kc6 {[%clk 0:00:22.3]} 45. a4
{[%clk 0:00:40.4]} 45... Nh4 {[%clk 0:00:19.2]} 46. Nd4+ {[%clk 0:00:38.2]}
46... Kd6 {[%clk 0:00:19]} 47. Nb5+ {[%clk 0:00:36.9]} 47... Kc5 {[%clk
0:00:19.2]} 48. Nc7 {[%clk 0:00:37.4]} 48... Ng2 {[%clk 0:00:19.2]} 49. Ne6+
{[%clk 0:00:37.2]} 49... Kd6 {[%clk 0:00:18]} 50. Nf8 {[%clk 0:00:26.5]} 50...
Nxf4+ {[%clk 0:00:16.8]} 51. Ke3 {[%clk 0:00:27]} 51... g5 {[%clk 0:00:17.2]}
52. h4 {[%clk 0:00:27.3]} 52... Ke5 {[%clk 0:00:16.8]} 53. hxg5 {[%clk
0:00:24.5]} 53... hxg5 {[%clk 0:00:17.7]} 54. Nd7+ {[%clk 0:00:24.6]} 54... Kf5
{[%clk 0:00:16.8]} 55. Nxb6 {[%clk 0:00:25.5]} 55... g4 {[%clk 0:00:15.8]} 56.
a5 {[%clk 0:00:25.1]} 56... g3 {[%clk 0:00:13]} 57. a6 {[%clk 0:00:22.7]} 57...
Kg4 {[%clk 0:00:11.1]} 58. a7 {[%clk 0:00:21]} 58... g2 {[%clk 0:00:11.3]} 59.
Kf2 {[%clk 0:00:20.2]} 59... Kh3 {[%clk 0:00:10.6]} 60. a8=Q {[%clk 0:00:18.3]}
60... Nd3+ {[%clk 0:00:11.5]} 61. Kg1 {[%clk 0:00:16.6]} 61... Ne5 {[%clk
0:00:12.4]} 62. Qh8+ {[%clk 0:00:16.3]} 62... Kg3 {[%clk 0:00:11.2]} 63. Qxe5+
{[%clk 0:00:17.2]} 1-0

[Event "Late-Titled-Tuesday-Blitz-September-19-2023"]
[Site "Chess.com"]
[Date "2023.09.19"]
[Round "7"]
[White "MathiasWomacka"]
[Black "scandalgod"]
[Result "1-0"]
[WhiteElo "2558"]
[BlackElo "2456"]
[TimeControl "180+1"]
[EndTime "15:16:13 PDT"]
[Termination "MathiasWomacka won on time"]

1. e4 {[%clk 0:03:00.9]} 1... e5 {[%clk 0:02:56.1]} 2. Nf3 {[%clk 0:03:00.3]}
2... Nc6 {[%clk 0:02:43.7]} 3. Bb5 {[%clk 0:03:00.6]} 3... a6 {[%clk 0:02:31.7]}
4. Bxc6 {[%clk 0:03:00.3]} 4... dxc6 {[%clk 0:02:31.7]} 5. O-O {[%clk
0:03:00.8]} 5... Bg4 {[%clk 0:02:30.5]} 6. h3 {[%clk 0:03:00.1]} 6... h5 {[%clk
0:02:28.4]} 7. d3 {[%clk 0:02:59.8]} 7... Qf6 {[%clk 0:02:25.2]} 8. Nbd2 {[%clk
0:03:00.1]} 8... Ne7 {[%clk 0:02:06]} 9. Re1 {[%clk 0:02:56.5]} 9... Ng6 {[%clk
0:02:02.5]} 10. d4 {[%clk 0:02:56.4]} 10... Bd6 {[%clk 0:01:55.1]} 11. hxg4
{[%clk 0:02:55.3]} 11... hxg4 {[%clk 0:01:51.8]} 12. Nh2 {[%clk 0:02:55.6]}
12... Rxh2 {[%clk 0:01:30.2]} 13. Qxg4 {[%clk 0:02:55.5]} 13... Rh4 {[%clk
0:01:22.1]} 14. Qf5 {[%clk 0:02:55.2]} 14... exd4 {[%clk 0:01:09.3]} 15. Nf3
{[%clk 0:02:54.7]} 15... Rh8 {[%clk 0:01:01.6]} 16. Bg5 {[%clk 0:02:53.9]} 16...
Qe6 {[%clk 0:00:58.3]} 17. Qxe6+ {[%clk 0:02:48.6]} 17... fxe6 {[%clk
0:00:57.3]} 18. Nxd4 {[%clk 0:02:49.2]} 18... Kf7 {[%clk 0:00:52.4]} 19. g3
{[%clk 0:02:42]} 19... Rh5 {[%clk 0:00:47.9]} 20. Nf3 {[%clk 0:02:35.5]} 20...
Rah8 {[%clk 0:00:42.4]} 21. Kg2 {[%clk 0:02:34.6]} 21... Ne5 {[%clk 0:00:40.3]}
22. Be3 {[%clk 0:02:09]} 22... Nxf3 {[%clk 0:00:38.5]} 23. Kxf3 {[%clk
0:02:09.9]} 23... Kf6 {[%clk 0:00:37.4]} 24. Rad1 {[%clk 0:01:45.4]} 24... b5
{[%clk 0:00:34.9]} 25. Bd4+ {[%clk 0:01:32.7]} 25... e5 {[%clk 0:00:33]} 26. Be3
{[%clk 0:01:32.7]} 26... Ke6 {[%clk 0:00:32.3]} 27. Kg4 {[%clk 0:01:27.3]} 27...
g6 {[%clk 0:00:30.1]} 28. b3 {[%clk 0:01:22.5]} 28... a5 {[%clk 0:00:28.7]} 29.
c4 {[%clk 0:01:21.4]} 29... b4 {[%clk 0:00:26.5]} 30. Rd3 {[%clk 0:00:56.1]}
30... Be7 {[%clk 0:00:26.2]} 31. Red1 {[%clk 0:00:55.7]} 31... Rh2 {[%clk
0:00:23.2]} 32. c5 {[%clk 0:00:40.8]} 32... Rh1 {[%clk 0:00:21.1]} 33. Rd7
{[%clk 0:00:37.6]} 33... Rxd1 {[%clk 0:00:18.6]} 34. Rxd1 {[%clk 0:00:38.5]}
34... Rh2 {[%clk 0:00:15.7]} 35. Kf3 {[%clk 0:00:32.8]} 35... Rh8 {[%clk
0:00:13.8]} 36. Ke2 {[%clk 0:00:31.9]} 36... Rh2 {[%clk 0:00:11.9]} 37. Kd3
{[%clk 0:00:31.3]} 37... Rh8 {[%clk 0:00:09.6]} 38. Kc4 {[%clk 0:00:31.1]} 38...
g5 {[%clk 0:00:07.7]} 39. a3 {[%clk 0:00:29.3]} 39... bxa3 {[%clk 0:00:06.1]}
40. Ra1 {[%clk 0:00:29.2]} 40... Rb8 {[%clk 0:00:03.6]} 41. Rxa3 {[%clk
0:00:28.7]} 41... Rb4+ {[%clk 0:00:03.9]} 42. Kd3 {[%clk 0:00:27.8]} 42... Rb5
{[%clk 0:00:04.5]} 43. Kc3 {[%clk 0:00:26.2]} 43... Bxc5 {[%clk 0:00:03.9]} 44.
Bxc5 {[%clk 0:00:23.3]} 44... Rxc5+ {[%clk 0:00:04.8]} 45. Kd3 {[%clk
0:00:23.6]} 45... Rb5 {[%clk 0:00:05.4]} 46. Kc4 {[%clk 0:00:21]} 46... Kd6
{[%clk 0:00:05.6]} 47. f3 {[%clk 0:00:18.6]} 47... Rb4+ {[%clk 0:00:06]} 48. Kc3
{[%clk 0:00:17.8]} 48... Rb5 {[%clk 0:00:05.9]} 49. Kc4 {[%clk 0:00:17.8]} 49...
Ke6 {[%clk 0:00:06]} 50. Ra2 {[%clk 0:00:17.3]} 50... Kd6 {[%clk 0:00:05.6]} 51.
Rd2+ {[%clk 0:00:16.7]} 51... Ke7 {[%clk 0:00:05.7]} 52. Rh2 {[%clk 0:00:15.7]}
52... Rb4+ {[%clk 0:00:03.4]} 53. Kc3 {[%clk 0:00:15.9]} 53... c5 {[%clk
0:00:03.6]} 54. Rh7+ {[%clk 0:00:16.2]} 54... Kd6 {[%clk 0:00:03.7]} 55. Rg7
{[%clk 0:00:16.4]} 55... a4 {[%clk 0:00:03.1]} 56. bxa4 {[%clk 0:00:16]} 56...
Rxa4 {[%clk 0:00:03.4]} 57. Rg6+ {[%clk 0:00:16.9]} 57... Kd7 {[%clk 0:00:03.4]}
58. Rxg5 {[%clk 0:00:17.8]} 58... Ra3+ {[%clk 0:00:03.6]} 59. Kc4 {[%clk
0:00:17.7]} 59... Rxf3 {[%clk 0:00:04]} 60. Kxc5 {[%clk 0:00:17.7]} 60... Re3
{[%clk 0:00:01.8]} 61. Kd5 {[%clk 0:00:17.8]} 61... c6+ {[%clk 0:00:01.6]} 62.
Kxe5 {[%clk 0:00:18]} 62... c5 {[%clk 0:00:01.5]} 63. Kd5 {[%clk 0:00:17.8]}
63... c4 {[%clk 0:00:01.7]} 64. Kxc4 {[%clk 0:00:16.1]} 64... Rxe4+ {[%clk
0:00:01.6]} 65. Kd5 {[%clk 0:00:17]} 65... Re7 {[%clk 0:00:01.1]} 66. Rg7 {[%clk
0:00:17.9]} 1-0